bitfinex-derivatives/quotes_SOLF0:USTF0_20250808
["timestamp","ask_amount","ask_price","bid_price","bid_amount"]
[1754622714686,3.23312396,175.1,175.04,3.19]
[1754622714883,3.31,175.08,175.04,3.19]
[1754622715383,6.54312396,175.1,175.04,3.19]
[1754622715982,351.0,175.3,175.04,3.19]
[1754622716186,3.31,175.13,175.07,3.19]
[1754622716988,3.31,175.13,175.12,5.7093]
[1754622718088,3.23312396,175.14,175.12,5.7093]
[1754622718283,6.54312396,175.14,175.13,5.7089]
[1754622718785,6.54312396,175.14,175.12,5.7092]
[1754622718985,3.31,175.13,175.12,5.7092]
[1754622719884,3.23312396,175.14,175.11,8.8995]
[1754622720091,3.31,175.12,175.11,8.9390442]
[1754622720582,3.27672403,175.14,175.12,5.7092]
[1754622720583,6.58672403,175.14,175.12,5.7092]
[1754622720783,6.58672403,175.14,175.13,3.19]
[1754622721189,6.58672403,175.14,175.12,5.7092]
[1754622721384,3.31,175.13,175.12,8.8992]
[1754622722087,3.31,175.13,175.11,5.7490442]
[1754622722588,8.7491,175.13,175.11,0.0395442]
[1754622723288,3.04,175.13,175.11,0.0395442]
[1754622723889,3.04,175.12,175.11,9.0589442]
[1754622724083,3.04,175.13,175.12,3.31]
[1754622724590,3.04,175.13,175.12,9.0192]
[1754622724886,3.04,175.13,175.12,3.31]
[1754622725084,3.04,175.12,175.11,3.3495442]
[1754622726184,3.04,175.12,175.11,9.0591442]
[1754622726389,3.04,175.12,175.11,3.3495442]
[1754622726988,3.27672403,175.14,175.11,3.3495442]
[1754622727184,6.31672403,175.14,175.11,0.0395442]
[1754622727491,3.27672403,175.14,175.12,3.31]
[1754622727791,3.27672403,175.14,175.13,9.0189]
[1754622728183,3.27672403,175.14,175.11,0.0395442]
[1754622728384,3.04,175.13,175.11,3.3495442]
[1754622728590,3.04,175.12,175.11,3.3495442]
[1754622728894,3.04,175.12,175.11,9.0591442]
[1754622729492,3.27672403,175.14,175.12,9.0193]
[1754622729692,6.31672403,175.14,175.13,3.31]
[1754622732098,3.27672403,175.14,175.13,9.019]
[1754622732498,6.31672403,175.14,175.13,3.31]
[1754622732694,6.31672403,175.14,175.11,0.0395442]
[1754622732899,3.04,175.13,175.12,3.31]
[1754622733393,3.04,175.12,175.11,3.3495442]
[1754622733588,3.04,175.12,175.11,9.0589442]
[1754622735803,3.04,175.11,175.06,122.35880766]
[1754622735997,3.23312396,175.07,175.06,122.35880766]
[1754622736204,6.27312396,175.07,175.06,122.35880766]
[1754622736798,6.27312396,175.07,175.04,3.31]
[1754622736799,3.23312396,175.07,175.04,3.31]
[1754622737096,3.04,175.03,174.99,3.31]
[1754622737307,3.04,175.02,174.99,3.31]
[1754622737494,3.23312396,175.03,174.99,3.31]
[1754622737899,3.23312396,175.03,175.02,9.0226]
[1754622738205,3.27391327,175.03,175.02,9.0226]
[1754622740104,0.04078931,175.03,175.02,9.0226]
[1754622740803,6.27312396,175.09,175.07,5.7107]
[1754622741010,3.04,175.08,175.01,3.31]
[1754622741203,3.23312396,175.07,175.01,3.31]
[1754622741397,3.23312396,175.07,175.06,5.7112]
[1754622741594,3.23312396,175.07,175.06,9.0212]
[1754622741802,6.27312396,175.07,175.06,9.0212]
[1754622742507,6.27312396,175.07,175.06,5.7112]
[1754622742706,6.27312396,175.07,175.05,5.7114]
[1754622743000,3.04,175.06,175.05,9.0214]
[1754622748607,3.23312396,175.07,175.06,9.0212]
[1754622748811,6.27312396,175.07,175.06,3.31]
[1754622749011,6.27312396,175.07,175.06,9.0212]
[1754622749208,3.23312396,175.07,175.06,9.0212]
[1754622749514,3.04,175.08,175.07,3.31]
[1754622749711,6.27312396,175.08,175.07,3.31]
[1754622751211,6.27312396,175.08,175.07,9.0209]
[1754622752111,6.27312396,175.08,175.07,3.31]
[1754622752914,3.23312396,175.08,175.06,5.7111]
[1754622753112,3.07,175.07,175.06,8.8411]
[1754622754514,3.07,175.07,175.06,3.13]
[1754622755415,6.30312396,175.08,175.07,3.13]
[1754622755816,6.30312396,175.1,175.07,3.13]
[1754622756015,6.30312396,175.1,175.01,3.13]
[1754622756216,3.07,175.09,175.01,3.13]
[1754622756616,3.23312396,175.08,175.01,3.13]
[1754622756815,3.07,175.07,175.06,3.13]
[1754622757314,5.7111,175.07,175.0,36.23312396]
[1754622757517,3.07,175.06,175.05,3.13]
[1754622758217,6.30312396,175.08,175.05,3.13]
[1754622758520,6.30312396,175.08,175.06,5.7112]
[1754622758720,6.30312396,175.08,175.07,3.13]
[1754622759423,12.01372396,175.08,175.07,3.13]
[1754622760625,3.23312396,175.08,175.07,3.13]
[1754622760820,3.23312396,175.1,175.07,3.13]
[1754622761220,12.01322396,175.1,175.07,8.8407]
[1754622761620,6.30312396,175.1,175.07,3.13]
[1754622761826,6.30312396,175.1,175.08,5.7103]
[1754622762024,6.30312396,175.1,175.09,3.13]
[1754622762324,12.01302396,175.1,175.09,3.13]
[1754622762525,12.01302396,175.1,175.07,5.7107]
[1754622762725,3.07,175.09,175.08,3.13]
[1754622763527,3.23312396,175.1,175.02,3.23312396]
[1754622763720,6.30312396,175.1,175.09,3.13]
[1754622763916,3.07,175.1,175.09,3.13]
[1754622764126,8.7799,175.1,175.09,3.13]
[1754622764823,12.01302396,175.1,175.09,3.13]
[1754622765327,6.30312396,175.1,175.09,8.8402]
[1754622765629,6.30312396,175.11,175.1,3.13]
[1754622766927,12.01272396,175.11,175.1,3.13]
[1754622768619,12.01272396,175.11,175.08,5.7105]
[1754622768620,3.07,175.1,175.04,3.13]
[1754622768825,3.07,175.05,175.04,3.13]
[1754622769027,6.30312396,175.06,175.04,3.13]
[1754622769225,3.23312396,175.06,175.04,3.13]
[1754622769931,3.07,175.08,174.99,36.23312396]
[1754622770230,6.30312396,175.08,175.0,3.13]
[1754622770428,3.07,175.11,175.03,3.23312396]
[1754622770727,3.07,175.11,175.04,3.13]
[1754622770927,3.07,175.11,175.1,5.7099]
[1754622771131,3.07,175.12,175.11,3.13]
[1754622772234,3.07,175.12,175.11,8.8396]
[1754622773034,3.07,175.12,175.11,3.13]
[1754622774233,3.07,175.12,175.11,8.8396]
[1754622774428,3.07,175.12,175.11,3.13]
[1754622774828,3.07,175.12,175.11,8.8396]
[1754622777623,3.07,175.12,175.01,33.0]
[1754622777624,6.30312396,175.16,175.08,3.13]
[1754622777828,3.23312396,175.14,175.08,3.13]
[1754622778030,3.07,175.12,175.11,5.7093]
[1754622778335,3.07,175.12,175.11,3.13]
[1754622779234,8.7793,175.12,175.11,3.13]
[1754622779835,3.07,175.12,175.11,3.13]
[1754622780034,3.07,175.12,175.11,8.8396]
[1754622780333,3.07,175.14,175.12,3.13]
[1754622780534,3.07,175.14,175.12,8.839]
[1754622780734,3.07,175.14,175.13,3.13]
[1754622781638,3.07,175.14,175.06,3.11]
[1754622781836,3.2,175.12,175.06,3.11]
[1754622782138,3.23312396,175.13,175.06,3.11]
[1754622782336,8.94212396,175.13,175.06,3.11]
[1754622782539,12.14212396,175.13,175.06,3.11]
[1754622783039,8.94212396,175.13,175.1,5.7097]
[1754622783242,3.2,175.12,175.11,3.11]
[1754622784535,8.9093,175.12,175.11,3.11]
[1754622785337,3.2,175.12,175.11,3.11]
[1754622785633,3.2,175.12,175.11,8.8196]
[1754622788541,8.94212396,175.13,175.11,5.7096]
[1754622788740,6.43312396,175.13,175.12,3.11]
[1754622789747,12.14202396,175.13,175.12,3.11]
[1754622790045,3.2,175.12,175.11,3.11]
[1754622790341,8.9094,175.12,175.11,3.11]
[1754622791741,3.23312396,175.13,175.04,33.0]
[1754622791946,3.23312396,175.07,175.06,3.11]
[1754622792243,6.43312396,175.07,175.06,3.11]
[1754622792442,8.94422396,175.07,175.04,3.11]
[1754622792644,3.2,175.06,175.0,3.11]
[1754622793344,3.2,175.06,175.04,5.7117]
[1754622793543,3.2,175.06,175.05,3.11]
[1754622793943,3.2,175.06,175.03,8.8221]
[1754622794245,3.2,175.04,175.03,8.8221]
[1754622796647,6.43312396,175.05,175.04,8.8219]
[1754622797646,3.2,175.05,175.04,8.8219]
[1754622801043,3.23312396,175.06,175.04,8.8219]
[1754622801250,6.43312396,175.06,175.05,3.11]
[1754622802351,6.43312396,175.06,175.05,8.8215]
[1754622802551,6.43312396,175.06,175.05,3.11]
[1754622803252,6.43312396,175.06,175.05,8.8215]
[1754622804252,6.43312396,175.06,175.05,3.11]
[1754622805662,6.43312396,175.06,175.05,8.8215]
[1754622806263,6.43312396,175.06,175.05,3.11]
[1754622806459,3.23312396,175.06,175.05,3.11]
[1754622807159,6.43312396,175.06,175.05,3.11]
[1754622808163,6.43312396,175.06,175.05,8.8215]
[1754622808964,6.43312396,175.06,175.05,3.11]
[1754622809566,12.14432396,175.06,175.05,3.11]
[1754622810465,6.43312396,175.06,175.05,8.8215]
[1754622811266,6.43312396,175.06,175.05,3.11]
[1754622812468,12.14432396,175.06,175.05,3.11]
[1754622812857,8.94432396,175.06,175.05,3.11]
[1754622813063,3.23312396,175.06,175.05,3.11]
[1754622814969,3.23312396,175.06,175.05,8.8215]
[1754622815168,3.23312396,175.06,175.05,3.11]
[1754622815468,6.52312396,175.06,175.05,3.11]
[1754622815667,6.52312396,175.06,175.05,8.8215]
[1754622817070,3.23312396,175.06,175.05,8.8215]
[1754622819966,3.23312396,175.08,175.04,13.6]
[1754622820172,3.23312396,175.08,175.05,3.04]
[1754622820376,3.29,175.09,175.05,3.04]
[1754622820674,3.29,175.08,175.07,5.7107]
[1754622821262,3.23312396,175.08,175.05,3.04]
[1754622822183,3.23312396,175.08,175.07,5.7108]
[1754622822364,3.23312396,175.08,175.07,8.7508]
[1754622822562,6.52312396,175.08,175.07,3.04]
[1754622822764,3.29,175.07,175.05,8.7513]
[1754622822972,3.29,175.07,175.06,3.04]
[1754622823476,3.29,175.08,175.07,5.7109]
[1754622823678,3.29,175.08,175.07,8.7509]
[1754622825281,3.23312396,175.09,175.08,8.7506]
[1754622826182,6.52312396,175.09,175.08,8.7506]
[1754622826474,6.52312396,175.15,175.07,3.04]
[1754622826680,3.29,175.14,175.09,3.04]
[1754622827381,3.23312396,175.15,175.09,3.04]
[1754622827583,15.11237396,175.17,175.14,3.04]
[1754622827776,3.29,175.16,175.14,3.04]
[1754622827975,8.9979,175.16,175.15,3.04]
[1754622828177,8.9979,175.16,175.13,5.7087]
[1754622828376,3.29,175.15,175.13,8.7487]
[1754622828681,3.29,175.14,175.12,8.7491]
[1754622828876,3.29,175.14,175.12,5.7091]
[1754622829081,3.29,175.14,175.12,8.7491]
[1754622829282,8.998,175.16,175.14,3.04]
[1754622829481,3.29,175.15,175.14,3.04]
[1754622829983,8.9982,175.15,175.14,3.04]
[1754622830780,5.7082,175.15,175.12,3.04]
[1754622830981,3.29,175.13,175.12,3.04]
[1754622831183,3.29,175.13,175.12,8.7491]
[1754622831382,3.29,175.13,175.1,3.04]
[1754622831383,6.52312396,175.13,175.1,3.04]
[1754622831584,6.52312396,175.13,175.1,8.7496]
[1754622831885,3.29,175.11,175.1,3.04]
[1754622832785,3.29,175.11,175.1,8.7499]
[1754622833382,3.23312396,175.13,175.1,8.7499]
[1754622833587,3.29,175.12,175.11,8.7493]
[1754622834087,12.23152396,175.15,175.12,8.7492]
[1754622834286,3.29,175.14,175.12,5.7092]
[1754622834686,3.29,175.15,175.12,5.7092]
[1754622835085,3.29,175.15,175.12,8.7492]
[1754622835582,3.23312396,175.14,175.12,8.7492]
[1754622835789,3.29,175.13,175.12,8.7492]
[1754622836790,3.29,175.13,175.12,3.04]
[1754622838189,3.29,175.13,175.12,8.7492]
[1754622838590,8.94152396,175.15,175.12,3.04]
[1754622838792,3.23312396,175.15,175.14,5.7085]
[1754622838989,3.23312396,175.15,175.14,8.7485]
[1754622839296,6.52312396,175.15,175.14,8.7485]
[1754622839492,6.52312396,175.15,175.14,3.04]
[1754622840293,3.23312396,175.15,175.14,3.04]
[1754622840594,6.52312396,175.15,175.14,8.7485]
[1754622841696,3.29,175.15,175.14,8.7485]
[1754622842597,3.29,175.15,175.09,3.02]
[1754622842790,3.23312396,175.13,175.09,3.02]
[1754622842989,3.3,175.12,175.11,5.7095]
[1754622843187,3.3,175.12,175.11,8.7295]
[1754622843493,3.23312396,175.13,175.12,5.7092]
[1754622843692,6.53312396,175.15,175.12,3.02]
[1754622844196,6.53312396,175.15,175.13,5.7087]
[1754622844397,3.23312396,175.15,175.14,3.02]
[1754622844694,6.53312396,175.15,175.14,3.02]
[1754622848096,9.0082,175.15,175.13,15.9187]
[1754622848398,3.3,175.14,175.13,18.9387]
[1754622848701,9.0085,175.14,175.13,10.21]
[1754622848895,9.0085,175.14,175.13,13.23]
[1754622851098,3.3,175.14,175.13,13.23]
[1754622851298,3.23312396,175.15,175.14,3.02]
[1754622851899,9.0081,175.16,175.14,3.02]
[1754622852903,5.7081,175.16,175.14,3.02]
[1754622853301,9.0081,175.16,175.14,8.7285]
[1754622853700,9.0081,175.16,175.14,3.02]
[1754622853902,9.0082,175.15,175.14,3.02]
[1754622854300,3.3,175.15,175.14,3.02]
[1754622856700,9.0082,175.15,175.13,15.9187]
[1754622856901,3.3,175.14,175.13,18.9387]
[1754622857504,9.0085,175.14,175.13,13.23]
[1754622857706,9.0085,175.14,175.13,10.21]
[1754622858904,3.3,175.14,175.13,13.23]
[1754622859804,9.0085,175.14,175.13,13.23]
[1754622860307,9.0085,175.14,175.13,10.21]
[1754622861906,9.0085,175.14,175.13,13.23]
[1754622862111,8.94152396,175.15,175.13,13.23]
[1754622862408,9.0084,175.15,175.14,3.02]
[1754622862609,3.23312396,175.16,175.14,3.02]
[1754622862798,6.53312396,175.16,175.14,3.02]
[1754622863003,6.53312396,175.16,175.15,3.02]
[1754622863303,12.24102396,175.16,175.15,3.02]
[1754622865209,3.3,175.15,175.14,3.02]
[1754622866512,3.3,175.15,175.14,16.39]
[1754622867713,9.0082,175.15,175.14,16.39]
[1754622867909,9.0082,175.15,175.14,13.37]
[1754622868113,3.3,175.15,175.14,16.39]
[1754622868313,3.3,175.15,175.14,22.0985]
[1754622868814,3.3,175.15,175.14,16.39]
[1754622871219,9.0082,175.15,175.14,16.39]
[1754622874517,9.0082,175.15,175.14,13.37]
[1754622875319,8.9892,175.12,175.11,3.06]
[1754622875516,3.23312396,175.12,175.09,3.06]
[1754622875714,6.51312396,175.12,175.09,3.06]
[1754622876120,8.9896,175.11,175.09,3.06]
[1754622876721,3.28,175.09,175.05,3.06]
[1754622876921,6.51312396,175.08,175.05,3.06]
[1754622877417,3.23312396,175.08,175.07,8.7708]
[1754622878119,3.23312396,175.08,175.07,3.06]
[1754622878723,3.23312396,175.08,175.07,8.7708]
[1754622878922,8.94312396,175.1,175.07,3.06]
[1754622879222,12.22312396,175.1,175.07,3.06]
[1754622879421,3.28,175.09,175.07,5.7107]
[1754622879623,8.9902,175.09,175.06,11.2]
[1754622879921,3.28,175.09,175.08,3.06]
[1754622880321,12.22312396,175.1,175.08,3.06]
[1754622880522,12.22312396,175.1,175.09,3.06]
[1754622882123,8.94312396,175.1,175.09,3.06]
[1754622882520,12.22312396,175.1,175.09,3.06]
[1754622886127,6.51312396,175.1,175.09,3.06]
[1754622886727,3.23312396,175.1,175.09,3.06]
[1754622887727,8.94292396,175.1,175.09,3.06]
[1754622887928,3.23312396,175.1,175.09,3.06]
[1754622888130,3.23312396,175.1,175.09,8.7701]
[1754622888625,2.06716545,175.1,175.09,8.7701]
[1754622889229,3.28,175.14,175.07,5.12716545]
[1754622889418,2.06716545,175.09,175.08,3.06]
[1754622890122,2.06716545,175.09,175.08,8.7705]
[1754622890627,3.22944481,175.11,175.09,5.71]
[1754622890826,6.50944481,175.11,175.1,3.06]
[1754622891231,12.21894481,175.11,175.1,3.06]
[1754622891729,3.28,175.1,175.09,3.06]
[1754622892030,107.5,175.16,175.09,3.06]
[1754622892324,6.50944481,175.12,175.11,3.06]
[1754622892931,3.28,175.12,175.11,3.06]
[1754622893124,6.50944481,175.12,175.11,3.06]
[1754622894025,12.21864481,175.12,175.11,3.06]
[1754622894530,3.22944481,175.12,175.07,3.06]
[1754622894731,3.28,175.09,175.07,3.06]
[1754622895231,3.28,175.09,175.07,8.7706]
[1754622895427,3.22944481,175.08,175.07,3.06]
[1754622895629,3.28,175.07,175.06,11.2]
[1754622895831,5.7114,175.06,175.04,3.06]
[1754622896029,6.50944481,175.05,175.04,3.06]
[1754622896330,12.22084481,175.05,175.04,3.06]
[1754622896826,6.50944481,175.05,175.01,5.7126]
[1754622897031,8.9919,175.04,175.03,3.06]
[1754622897233,12.22134481,175.04,175.03,3.06]
[1754622897427,6.50944481,175.04,175.03,3.06]
[1754622898033,3.22944481,175.04,175.03,3.06]
[1754622899229,3.22944481,175.06,175.04,5.7117]
[1754622899431,3.22944481,175.06,175.05,3.06]
[1754622900131,3.22944481,175.06,175.05,8.7714]
[1754622900926,6.50944481,175.1,175.03,6.28944481]
[1754622901126,3.22944481,175.1,175.03,6.28944481]
[1754622901332,3.22944481,175.1,175.09,3.06]
[1754622901533,6.50944481,175.1,175.09,3.06]
[1754622902332,12.21924481,175.1,175.09,3.06]
[1754622902533,3.08,175.09,175.03,3.31]
[1754622902729,3.08,175.07,175.03,3.31]
[1754622903032,3.08,175.07,175.05,5.7112]
[1754622903333,3.08,175.07,175.06,3.31]
[1754622903729,3.22944481,175.08,175.03,3.31]
[1754622904336,3.08,175.07,175.05,5.7112]
[1754622904531,3.08,175.06,175.02,7.36]
[1754622904733,3.22944481,175.06,175.02,13.0723]
[1754622905032,3.08,175.04,175.03,3.31]
[1754622905533,3.22944481,175.06,175.04,3.31]
[1754622905931,3.22944481,175.06,175.04,9.0215]
[1754622906231,6.30944481,175.06,175.05,3.31]
[1754622907936,3.22944481,175.06,175.03,3.31]
[1754622908134,3.08,175.05,175.03,3.31]
[1754622908335,3.22944481,175.04,175.03,3.31]
[1754622908536,3.22944481,175.04,175.02,7.36]
[1754622908537,3.08,175.03,175.02,10.67]
[1754622908736,3.08,175.03,175.02,7.36]
[1754622909137,8.7921,175.03,175.02,7.36]
[1754622910232,5.7128,175.01,174.93,383.78]
[1754622910436,6.30944481,175.0,174.99,3.31]
[1754622911539,3.22944481,175.0,174.99,3.31]
[1754622913039,6.30944481,175.0,174.99,3.31]
[1754622914438,3.22944481,175.0,174.99,9.0234]
[1754622914741,3.22944481,175.0,174.99,3.31]
[1754622916145,3.08,175.01,174.99,3.31]
[1754622916341,3.22944481,175.01,175.0,3.31]
[1754622916539,3.22944481,175.02,175.0,3.31]
[1754622916939,3.22944481,175.02,175.01,5.7126]
[1754622917136,11.4197,175.1,175.01,5.7126]
[1754622917137,6.30944481,175.06,175.01,3.31]
[1754622917540,12.01994481,175.08,175.01,3.31]
[1754622917737,6.30944481,175.08,175.01,3.31]
[1754622918035,3.08,175.08,175.06,5.7109]
[1754622918241,3.22944481,175.1,175.07,3.31]
[1754622918944,6.30944481,175.1,175.09,3.31]
[1754622920245,6.30944481,175.12,175.09,3.31]
[1754622920742,3.22944481,175.12,175.09,3.31]
[1754622920944,3.08,175.14,175.11,3.31]
[1754622921645,3.08,175.14,175.11,5.7092]
[1754622921949,3.08,175.14,175.07,3.31]
[1754622922347,5.7087,175.14,175.1,5.7095]
[1754622922547,3.08,175.12,175.1,5.7095]
[1754622922748,3.08,175.12,175.06,3.22944481]
[1754622923042,3.08,175.11,175.1,3.31]
[1754622924642,3.08,175.11,175.04,3.22944481]
[1754622924843,3.08,175.11,175.05,3.31]
[1754622925650,3.08,175.11,175.07,5.7105]
[1754622925847,5.7093,175.12,175.08,3.31]
[1754622926047,3.08,175.11,175.08,3.31]
[1754622926243,3.08,175.11,175.09,5.7101]
[1754622926449,3.08,175.11,175.1,3.31]
[1754622928048,3.08,175.12,175.1,3.31]
[1754622928239,3.08,175.12,175.11,3.31]
[1754622928944,8.93834481,175.13,175.11,3.31]
[1754622929147,12.01834481,175.13,175.11,3.31]
[1754622930045,3.08,175.12,175.1,3.31]
[1754622930246,3.08,175.11,175.09,3.31]
[1754622930548,3.08,175.1,175.08,5.7104]
[1754622930848,5.7092,175.12,175.08,5.7104]
[1754622931045,5.7092,175.12,175.09,3.31]
[1754622931240,8.93844481,175.13,175.09,3.31]
[1754622931444,3.08,175.12,175.1,3.31]
[1754622931645,3.22944481,175.13,175.05,3.22944481]
[1754622931846,3.03,175.12,175.06,3.0]
[1754622932348,5.7094,175.12,175.08,5.7104]
[1754622932550,3.03,175.11,175.09,3.0]
[1754622932748,3.03,175.11,175.08,5.7104]
[1754622932947,5.7093,175.12,175.09,5.7101]
[1754622933250,3.22944481,175.12,175.1,3.0]
[1754622934250,6.25944481,175.12,175.1,3.0]
[1754622934452,11.96884481,175.12,175.1,3.0]
[1754622934745,3.03,175.11,175.06,3.0]
[1754622935051,3.03,175.11,175.08,5.7104]
[1754622935052,8.7397,175.11,175.08,5.7104]
[1754622935240,3.03,175.1,175.09,3.0]
[1754622936350,8.7398,175.1,175.09,3.0]
[1754622936550,3.03,175.1,175.09,3.0]
[1754622936850,3.22944481,175.12,175.09,3.0]
[1754622937049,3.22944481,175.12,175.1,3.0]
[1754622937250,3.03,175.11,175.1,3.0]
[1754622938252,11.96874481,175.12,175.1,3.0]
[1754622938553,5.7089,175.13,175.11,3.0]
[1754622938754,8.7389,175.13,175.11,3.0]
[1754622939148,5.7089,175.13,175.11,3.0]
[1754622939348,11.96804481,175.14,175.11,8.7094]
[1754622939553,3.03,175.13,175.11,3.0]
[1754622939953,104.16,175.19,175.1,5.7097]
[1754622940157,3.03,175.12,175.1,5.7097]
[1754622940559,3.03,175.12,175.11,3.0]
[1754622941048,5.7089,175.13,175.11,3.0]
[1754622941356,6.25944481,175.14,175.11,3.0]
[1754622941652,3.03,175.13,175.11,3.0]
[1754622942355,3.22944481,175.12,175.09,5.71]
[1754622942555,3.03,175.11,175.1,3.0]
[1754622943156,6.25944481,175.12,175.11,3.0]
[1754622943457,3.03,175.12,175.11,3.0]
[1754622944156,8.7392,175.12,175.11,3.0]
[1754622944853,3.03,175.12,175.08,5.7103]
[1754622945060,3.03,175.1,175.08,5.7103]
[1754622945557,3.03,175.1,175.09,3.0]
[1754622945857,3.03,175.1,175.09,8.7101]
[1754622946157,11.96874481,175.12,175.09,8.7101]
[1754622946358,3.03,175.11,175.1,3.0]
[1754622946555,8.7395,175.11,175.1,3.0]
[1754622946950,3.03,175.11,175.1,3.0]
[1754622948754,3.03,175.11,175.05,3.22944481]
[1754622948954,3.03,175.09,175.04,3.0]
[1754622949154,3.22944481,175.1,175.04,3.0]
[1754622949559,8.93944481,175.1,175.07,5.7106]
[1754622949764,11.96944481,175.1,175.08,3.0]
[1754622950962,11.96944481,175.1,175.08,8.7105]
[1754622951163,11.96944481,175.1,175.09,3.0]
[1754622951664,6.25944481,175.1,175.09,3.0]
[1754622952368,11.96924481,175.1,175.09,3.0]
[1754622952665,6.25944481,175.1,175.09,3.0]
[1754622953364,6.25944481,175.1,175.09,8.7102]
[1754622954164,3.03,175.1,175.09,8.7102]
[1754622954362,3.03,175.12,175.06,3.0]
[1754622955369,3.03,175.12,175.11,5.7095]
[1754622955576,3.03,175.12,175.11,8.7095]
[1754622955968,8.7386,175.14,175.13,3.0]
[1754622956778,3.03,175.14,175.13,8.7088]
[1754622957171,5.7079,175.16,175.13,8.7088]
[1754622957378,3.03,175.15,175.14,3.0]
[1754622957574,3.03,175.16,175.1,3.0]
[1754622957877,14.90925,175.17,175.12,3.0]
[1754622958079,14.90925,175.17,175.16,5.7079]
[1754622958279,11.87925,175.17,175.16,8.7079]
[1754622959074,14.90925,175.17,175.16,8.7079]
[1754622959276,11.87925,175.17,175.16,8.7079]
[1754622960983,9.84322083,175.17,175.16,8.7079]
[1754622962380,9.84322083,175.17,175.16,11.93734481]
[1754622963479,9.84322083,175.17,175.16,8.7079]
[1754622963973,12.86322083,175.17,175.16,3.0]
[1754622964378,12.86322083,175.17,175.12,3.22944481]
[1754622964582,3.02,175.16,175.15,3.2]
[1754622964782,3.02,175.16,175.14,3.2]
[1754622964982,3.02,175.15,175.14,3.2]
[1754622965178,3.02,175.15,175.14,8.9085]
[1754622965481,3.02,175.15,175.14,3.2]
[1754622965676,3.02,175.15,175.13,3.2]
[1754622966285,8.7284,175.15,175.13,3.2]
[1754622966485,3.02,175.14,175.13,8.9088]
[1754622966684,3.02,175.16,175.13,5.7088]
[1754622966885,5.7079,175.16,175.14,3.2]
[1754622967088,3.02,175.15,175.14,3.2]
[1754622967286,3.02,175.15,175.14,8.9085]
[1754622968582,3.02,175.16,175.15,3.2]
[1754622969893,3.02,175.15,175.13,3.2]
[1754622970489,3.02,175.15,175.14,8.9083]
[1754622974894,3.02,175.15,175.14,5.7083]
[1754622975094,3.02,175.15,175.14,8.9083]
[1754622975591,3.02,175.15,175.14,3.2]
[1754622975890,3.02,175.15,175.11,94.94264895]
[1754622976195,8.7284,175.15,175.12,8.9092]
[1754622976391,3.02,175.14,175.13,3.2]
[1754622976693,3.22944481,175.16,175.13,3.2]
[1754622976889,6.24944481,175.16,175.13,5.7086]
[1754622977090,3.22944481,175.16,175.13,5.7086]
[1754622977293,3.02,175.15,175.14,3.2]
[1754622977494,8.7282,175.15,175.14,3.2]
[1754622977691,8.7282,175.15,175.12,5.709]
[1754622977896,3.02,175.14,175.13,3.2]
[1754622978099,3.02,175.14,175.12,8.909]
[1754622979098,3.02,175.13,175.12,8.909]